[Event "*** Titled Tuesday Blitz"]
[Site "Chess.com"]
[Date "2020.04.21"]
[Round "1"]
[White "Zkid"]
[Black "Blitzking642"]
[Result "1-0"]
[WhiteElo "2799"]
[BlackElo "2418"]
[TimeControl "180+1"]
[EndTime "10:07:10 PDT"]
[Termination "Zkid won on time"]

1. e4 {[%clk 0:03:00.1]} 1... c5 {[%clk 0:03:00.1]} 2. Nf3 {[%clk 0:02:59.6]}
2... Nc6 {[%clk 0:03:00.4]} 3. Bb5 {[%clk 0:02:59]} 3... g6 {[%clk 0:02:59.6]}
4. Bxc6 {[%clk 0:02:58.9]} 4... dxc6 {[%clk 0:02:55.1]} 5. h3 {[%clk 0:02:58.9]}
5... Bg7 {[%clk 0:02:54.4]} 6. d3 {[%clk 0:02:58.7]} 6... e5 {[%clk 0:02:54.1]}
7. Nc3 {[%clk 0:02:49.2]} 7... Qe7 {[%clk 0:02:50.7]} 8. a4 {[%clk 0:02:47.3]}
8... b6 {[%clk 0:02:32.4]} 9. a5 {[%clk 0:02:44.9]} 9... Rb8 {[%clk 0:02:27.4]}
10. axb6 {[%clk 0:02:43.7]} 10... axb6 {[%clk 0:02:27]} 11. Be3 {[%clk
0:02:44.3]} 11... Nf6 {[%clk 0:02:25.7]} 12. Qd2 {[%clk 0:02:43.5]} 12... Nd7
{[%clk 0:02:23.5]} 13. Bh6 {[%clk 0:02:39.9]} 13... O-O {[%clk 0:02:15.9]} 14.
O-O {[%clk 0:02:38.2]} 14... Rd8 {[%clk 0:02:11.4]} 15. Ra7 {[%clk 0:02:34.6]}
15... Rb7 {[%clk 0:01:57.2]} 16. Ra8 {[%clk 0:02:33.5]} 16... Rb8 {[%clk
0:01:52.6]} 17. Rxb8 {[%clk 0:02:26.2]} 17... Nxb8 {[%clk 0:01:52.5]} 18. Bxg7
{[%clk 0:02:25.8]} 18... Kxg7 {[%clk 0:01:52.2]} 19. Ra1 {[%clk 0:02:26.4]}
19... Qd6 {[%clk 0:01:37.5]} 20. Nd1 {[%clk 0:02:20.5]} 20... c4 {[%clk
0:01:31]} 21. Ne3 {[%clk 0:02:03.1]} 21... cxd3 {[%clk 0:01:29.3]} 22. cxd3
{[%clk 0:02:01.5]} 22... b5 {[%clk 0:01:24.8]} 23. Qc3 {[%clk 0:01:50.2]} 23...
f6 {[%clk 0:01:22.3]} 24. Nc2 {[%clk 0:01:32.9]} 24... Qxd3 {[%clk 0:00:59.2]}
25. Qxd3 {[%clk 0:01:29.7]} 25... Rxd3 {[%clk 0:00:58.4]} 26. Ra8 {[%clk
0:01:30.2]} 26... Bxh3 {[%clk 0:00:41]} 27. Rxb8 {[%clk 0:01:26.7]} 27... Bg4
{[%clk 0:00:38.9]} 28. Rb7+ {[%clk 0:01:10.4]} 28... Kh6 {[%clk 0:00:37.5]} 29.
Ne3 {[%clk 0:01:06.1]} 29... Bxf3 {[%clk 0:00:35.2]} 30. gxf3 {[%clk 0:01:07]}
30... Rb3 {[%clk 0:00:30.5]} 31. Rf7 {[%clk 0:00:51.3]} 31... Rxb2 {[%clk
0:00:24.1]} 32. Rxf6 {[%clk 0:00:51]} 32... Rb1+ {[%clk 0:00:24]} 33. Kg2 {[%clk
0:00:50.8]} 33... Rc1 {[%clk 0:00:24.5]} 34. Rf7 {[%clk 0:00:45.2]} 34... b4
{[%clk 0:00:20]} 35. Rb7 {[%clk 0:00:43.2]} 35... c5 {[%clk 0:00:17.7]} 36. Ng4+
{[%clk 0:00:43.6]} 36... Kg5 {[%clk 0:00:16.3]} 37. Nxe5 {[%clk 0:00:44.5]}
37... Kf6 {[%clk 0:00:08.8]} 38. f4 {[%clk 0:00:41]} 38... Re1 {[%clk 0:00:05]}
39. Nd7+ {[%clk 0:00:39.3]} 39... Ke7 {[%clk 0:00:04.4]} 40. e5 {[%clk
0:00:33.4]} 40... c4 {[%clk 0:00:03.4]} 41. Nc5+ {[%clk 0:00:29.1]} 41... Kd8
{[%clk 0:00:03.7]} 42. Rxb4 {[%clk 0:00:30]} 42... c3 {[%clk 0:00:03.2]} 43. Rc4
{[%clk 0:00:29.4]} 1-0

[Event "*** Titled Tuesday Blitz"]
[Site "Chess.com"]
[Date "2020.04.21"]
[Round "1"]
[White "zurzan"]
[Black "gammagramma"]
[Result "0-1"]
[WhiteElo "1991"]
[BlackElo "2500"]
[TimeControl "180+1"]
[EndTime "10:07:10 PDT"]
[Termination "gammagramma won by resignation"]

1. f4 {[%clk 0:03:00.9]} 1... d5 {[%clk 0:02:31.5]} 2. Nf3 {[%clk 0:02:58.6]}
2... Nd7 {[%clk 0:02:28.9]} 3. g3 {[%clk 0:02:59.5]} 3... g6 {[%clk 0:02:22]} 4.
Bg2 {[%clk 0:03:00.4]} 4... Bg7 {[%clk 0:02:18.9]} 5. O-O {[%clk 0:03:01.3]}
5... Ngf6 {[%clk 0:02:16.9]} 6. d3 {[%clk 0:03:00.8]} 6... b6 {[%clk 0:02:15]}
7. c3 {[%clk 0:02:59]} 7... Bb7 {[%clk 0:02:14.3]} 8. a4 {[%clk 0:02:54.7]} 8...
a5 {[%clk 0:02:14.1]} 9. Na3 {[%clk 0:02:53.4]} 9... Nc5 {[%clk 0:02:14.2]} 10.
h3 {[%clk 0:02:39.5]} 10... O-O {[%clk 0:02:01.5]} 11. Rb1 {[%clk 0:02:33.6]}
11... Qe8 {[%clk 0:01:56.8]} 12. b3 {[%clk 0:02:29]} 12... Nfd7 {[%clk
0:01:49.5]} 13. Bd2 {[%clk 0:02:28.1]} 13... e5 {[%clk 0:01:49.2]} 14. fxe5
{[%clk 0:02:25.9]} 14... Nxe5 {[%clk 0:01:45.4]} 15. Bf4 {[%clk 0:02:23.7]}
15... Nxf3+ {[%clk 0:01:42.7]} 16. Bxf3 {[%clk 0:02:23.9]} 16... Ne6 {[%clk
0:01:40.5]} 17. Bd2 {[%clk 0:02:22]} 17... Qd7 {[%clk 0:01:39.4]} 18. Kh2 {[%clk
0:02:18.5]} 18... Rae8 {[%clk 0:01:39.2]} 19. Nb5 {[%clk 0:02:14.3]} 19... c6
{[%clk 0:01:33.2]} 20. Na3 {[%clk 0:02:11.7]} 20... h5 {[%clk 0:01:32.9]} 21.
Nc2 {[%clk 0:02:04.5]} 21... c5 {[%clk 0:01:31.8]} 22. d4 {[%clk 0:02:00.4]}
22... cxd4 {[%clk 0:01:31.1]} 23. Nxd4 {[%clk 0:01:57.6]} 23... Nxd4 {[%clk
0:01:30.3]} 24. cxd4 {[%clk 0:01:57.8]} 24... h4 {[%clk 0:01:18.7]} 25. Bf4
{[%clk 0:01:53.5]} 25... hxg3+ {[%clk 0:01:17.6]} 26. Bxg3 {[%clk 0:01:53]}
26... Re6 {[%clk 0:01:10.9]} 27. Rc1 {[%clk 0:01:44]} 27... Rc8 {[%clk
0:01:07.5]} 28. Qd2 {[%clk 0:01:40]} 28... Ba6 {[%clk 0:01:01.5]} 29. Rxc8+
{[%clk 0:01:36.8]} 29... Qxc8 {[%clk 0:01:00.7]} 30. Re1 {[%clk 0:01:35.5]}
30... Qe8 {[%clk 0:00:59.8]} 31. Bxd5 {[%clk 0:01:26.3]} 31... Rxe2+ {[%clk
0:00:59.9]} 32. Rxe2 {[%clk 0:01:25.9]} 32... Qxe2+ {[%clk 0:00:59.9]} 33. Qxe2
{[%clk 0:01:25.8]} 33... Bxe2 {[%clk 0:01:00.6]} 34. Bc7 {[%clk 0:01:24.8]}
34... Bxd4 {[%clk 0:00:59.7]} 35. Kg3 {[%clk 0:01:22.7]} 35... Kg7 {[%clk
0:00:58.5]} 36. Kf4 {[%clk 0:01:19.3]} 36... f6 {[%clk 0:00:56.5]} 37. Ke4
{[%clk 0:01:17.3]} 37... Bc5 {[%clk 0:00:56.5]} 38. h4 {[%clk 0:01:12.5]} 38...
Bd1 {[%clk 0:00:54.3]} 39. Bc4 {[%clk 0:01:10.4]} 39... Kh6 {[%clk 0:00:47]} 40.
Bd8 {[%clk 0:01:08.8]} 40... f5+ {[%clk 0:00:45.1]} 41. Kf4 {[%clk 0:01:08.4]}
41... Kh5 {[%clk 0:00:42]} 42. Bf7 {[%clk 0:01:03.1]} 42... Bf2 {[%clk
0:00:40.3]} 43. Ke5 {[%clk 0:00:57.7]} 43... Bxh4 {[%clk 0:00:32]} 44. Bxb6
{[%clk 0:00:57]} 44... Be1 {[%clk 0:00:31.3]} 45. Kf6 {[%clk 0:00:52.8]} 45...
Bc3+ {[%clk 0:00:31.4]} 46. Ke6 {[%clk 0:00:52]} 46... Bxb3+ {[%clk 0:00:30.9]}
47. Ke7 {[%clk 0:00:51.1]} 47... Bxf7 {[%clk 0:00:31.8]} 48. Kxf7 {[%clk
0:00:50.9]} 48... g5 {[%clk 0:00:30]} 49. Ke6 {[%clk 0:00:50.2]} 49... f4 {[%clk
0:00:30]} 50. Kf5 {[%clk 0:00:50.3]} 50... f3 {[%clk 0:00:29.6]} 51. Bf2 {[%clk
0:00:47.8]} 51... g4 {[%clk 0:00:29.7]} 52. Kf4 {[%clk 0:00:47.8]} 52... Bb4
{[%clk 0:00:29.4]} 53. Ke3 {[%clk 0:00:43.2]} 53... Bc5+ {[%clk 0:00:29.4]} 0-1

[Event "*** Titled Tuesday Blitz"]
[Site "Chess.com"]
[Date "2020.04.21"]
[Round "1"]
[White "sganerdene"]
[Black "ajdemipopushi"]
[Result "0-1"]
[WhiteElo "2656"]
[BlackElo "2361"]
[TimeControl "180+1"]
[EndTime "10:07:12 PDT"]
[Termination "ajdemipopushi won by resignation"]

1. e4 {[%clk 0:03:00.9]} 1... c5 {[%clk 0:02:59.5]} 2. Nf3 {[%clk 0:03:01.2]}
2... g6 {[%clk 0:02:59.7]} 3. c3 {[%clk 0:03:00.5]} 3... d5 {[%clk 0:02:59.2]}
4. exd5 {[%clk 0:02:59.9]} 4... Qxd5 {[%clk 0:02:59.8]} 5. Bb5+ {[%clk
0:03:00.1]} 5... Bd7 {[%clk 0:02:57.8]} 6. Bxd7+ {[%clk 0:02:59.1]} 6... Nxd7
{[%clk 0:02:54.9]} 7. O-O {[%clk 0:02:59.5]} 7... Bg7 {[%clk 0:02:53.3]} 8. d4
{[%clk 0:02:58.9]} 8... Ngf6 {[%clk 0:02:50.6]} 9. Be3 {[%clk 0:02:58.7]} 9...
cxd4 {[%clk 0:02:48.8]} 10. Bxd4 {[%clk 0:02:58.9]} 10... O-O {[%clk 0:02:47.6]}
11. Re1 {[%clk 0:02:58.6]} 11... e6 {[%clk 0:02:46.9]} 12. Nbd2 {[%clk
0:02:56.4]} 12... Rfd8 {[%clk 0:02:42.7]} 13. Qc2 {[%clk 0:02:50.4]} 13... b6
{[%clk 0:02:22]} 14. a4 {[%clk 0:02:47.7]} 14... Rac8 {[%clk 0:02:19.1]} 15.
Rad1 {[%clk 0:02:47.2]} 15... Nc5 {[%clk 0:02:07.7]} 16. Nf1 {[%clk 0:02:38.7]}
16... Qc6 {[%clk 0:02:02.5]} 17. b3 {[%clk 0:02:32.2]} 17... h6 {[%clk
0:01:50.1]} 18. c4 {[%clk 0:02:31.5]} 18... a6 {[%clk 0:01:21.4]} 19. Qb2 {[%clk
0:02:26.7]} 19... Ne8 {[%clk 0:01:04.9]} 20. Bxg7 {[%clk 0:02:14.7]} 20... Nxg7
{[%clk 0:01:04.4]} 21. Qf6 {[%clk 0:02:11.6]} 21... Qc7 {[%clk 0:00:59.6]} 22.
Ne5 {[%clk 0:02:02.4]} 22... Rxd1 {[%clk 0:00:45.6]} 23. Rxd1 {[%clk 0:02:01.9]}
23... Nh5 {[%clk 0:00:45.5]} 24. Qf3 {[%clk 0:01:50.7]} 24... Qxe5 {[%clk
0:00:44.9]} 25. b4 {[%clk 0:01:42.5]} 25... Nxa4 {[%clk 0:00:43.1]} 26. Rd7
{[%clk 0:01:42.6]} 26... Nf6 {[%clk 0:00:32.2]} 27. Ra7 {[%clk 0:01:39]} 27...
b5 {[%clk 0:00:20.4]} 28. c5 {[%clk 0:01:23.1]} 28... Nc3 {[%clk 0:00:18]} 29.
Rxa6 {[%clk 0:01:09.1]} 29... Ncd5 {[%clk 0:00:17.6]} 30. Ra7 {[%clk 0:00:47.3]}
30... Qe4 {[%clk 0:00:15.3]} 31. Qh3 {[%clk 0:00:21.9]} 31... Qxb4 {[%clk
0:00:13.7]} 32. Qxh6 {[%clk 0:00:19.9]} 32... Qxc5 {[%clk 0:00:13.7]} 33. Rb7
{[%clk 0:00:19]} 33... b4 {[%clk 0:00:13.7]} 34. h4 {[%clk 0:00:18]} 34... Qc6
{[%clk 0:00:13.6]} 35. Ra7 {[%clk 0:00:17.5]} 35... b3 {[%clk 0:00:13.3]} 36. h5
{[%clk 0:00:17.1]} 36... Nxh5 {[%clk 0:00:13.1]} 37. Qg5 {[%clk 0:00:16.5]}
37... Nhf6 {[%clk 0:00:12.1]} 0-1

[Event "*** Titled Tuesday Blitz"]
[Site "Chess.com"]
[Date "2020.04.21"]
[Round "1"]
[White "Gyapiking"]
[Black "FMJoseHerrera"]
[Result "1-0"]
[WhiteElo "2346"]
[BlackElo "2607"]
[TimeControl "180+1"]
[EndTime "10:07:12 PDT"]
[Termination "Gyapiking won on time"]

1. c4 {[%clk 0:03:00.9]} 1... Nf6 {[%clk 0:02:59.1]} 2. g3 {[%clk 0:03:00.7]}
2... g6 {[%clk 0:02:58.5]} 3. Bg2 {[%clk 0:03:00.6]} 3... d6 {[%clk 0:02:59]} 4.
Nc3 {[%clk 0:03:00.6]} 4... Bg7 {[%clk 0:02:59.9]} 5. e4 {[%clk 0:03:00.6]} 5...
Nc6 {[%clk 0:02:58.6]} 6. Nge2 {[%clk 0:02:59.9]} 6... h5 {[%clk 0:02:57.3]} 7.
h3 {[%clk 0:02:58.6]} 7... Be6 {[%clk 0:02:54.4]} 8. d3 {[%clk 0:02:58.1]} 8...
Qd7 {[%clk 0:02:52.9]} 9. Nd5 {[%clk 0:02:57.2]} 9... Ne5 {[%clk 0:02:42.1]} 10.
Nef4 {[%clk 0:02:53.6]} 10... O-O {[%clk 0:02:34.6]} 11. Nxe6 {[%clk 0:02:52.3]}
11... fxe6 {[%clk 0:02:35.5]} 12. Nf4 {[%clk 0:02:52.3]} 12... Kh7 {[%clk
0:02:33.2]} 13. O-O {[%clk 0:02:51.7]} 13... c6 {[%clk 0:02:32.1]} 14. d4 {[%clk
0:02:47]} 14... Nxc4 {[%clk 0:02:29.4]} 15. Qc2 {[%clk 0:02:45.2]} 15... e5
{[%clk 0:01:58.6]} 16. Nxg6 {[%clk 0:02:45.1]} 16... Kxg6 {[%clk 0:01:53]} 17.
Qxc4 {[%clk 0:02:44.7]} 17... exd4 {[%clk 0:01:44.4]} 18. Qxd4 {[%clk
0:02:44.7]} 18... e5 {[%clk 0:01:44.4]} 19. Qd1 {[%clk 0:02:42.5]} 19... Kh7
{[%clk 0:01:41]} 20. f4 {[%clk 0:02:42.1]} 20... exf4 {[%clk 0:01:40.7]} 21.
gxf4 {[%clk 0:02:41.6]} 21... Rae8 {[%clk 0:01:38.1]} 22. Qc2 {[%clk 0:02:38.3]}
22... Kh8 {[%clk 0:01:36.5]} 23. Bd2 {[%clk 0:02:35.7]} 23... Qf7 {[%clk
0:01:35.7]} 24. Rae1 {[%clk 0:02:34.4]} 24... Qg6 {[%clk 0:01:35.8]} 25. Kh1
{[%clk 0:02:29]} 25... h4 {[%clk 0:01:31.6]} 26. f5 {[%clk 0:02:11.2]} 26... Qh7
{[%clk 0:01:30.3]} 27. Bg5 {[%clk 0:02:07.2]} 27... Qh5 {[%clk 0:01:27.2]} 28.
Qc1 {[%clk 0:02:03]} 28... Nh7 {[%clk 0:01:16.2]} 29. Bf4 {[%clk 0:02:01.7]}
29... Be5 {[%clk 0:01:16.8]} 30. Bf3 {[%clk 0:02:01.6]} 30... Bxf4 {[%clk
0:01:10.5]} 31. Qxf4 {[%clk 0:02:00.6]} 31... Qg5 {[%clk 0:01:10.3]} 32. Qxd6
{[%clk 0:01:57.4]} 32... Qe7 {[%clk 0:00:31.5]} 33. Qxe7 {[%clk 0:01:53.9]}
33... Rxe7 {[%clk 0:00:32.4]} 34. Bg4 {[%clk 0:01:41.6]} 34... Re5 {[%clk
0:00:31.6]} 35. Kg2 {[%clk 0:01:35.1]} 35... Nf6 {[%clk 0:00:31.5]} 36. Kf3
{[%clk 0:01:35.1]} 36... Rd8 {[%clk 0:00:31.4]} 37. Kf4 {[%clk 0:01:28.9]} 37...
Rde8 {[%clk 0:00:31]} 38. Bf3 {[%clk 0:01:27.8]} 38... Kg7 {[%clk 0:00:29.6]}
39. Rg1+ {[%clk 0:01:27]} 39... Kf7 {[%clk 0:00:29.4]} 40. Rg6 {[%clk
0:01:26.8]} 40... Nd5+ {[%clk 0:00:28.8]} 41. Kg4 {[%clk 0:01:14.3]} 41... Nf6+
{[%clk 0:00:28.5]} 42. Kxh4 {[%clk 0:01:13]} 42... Nxe4 {[%clk 0:00:27.4]} 43.
Bxe4 {[%clk 0:01:10.3]} 43... Rxe4+ {[%clk 0:00:27.5]} 44. Rxe4 {[%clk
0:01:10.3]} 44... Rxe4+ {[%clk 0:00:28.4]} 45. Kg5 {[%clk 0:01:10.4]} 45... Re2
{[%clk 0:00:28.8]} 46. Rd6 {[%clk 0:01:07.6]} 46... Ke7 {[%clk 0:00:23.9]} 47.
Re6+ {[%clk 0:01:06.3]} 47... Rxe6 {[%clk 0:00:21.3]} 48. fxe6 {[%clk
0:01:05.8]} 48... b5 {[%clk 0:00:20.7]} 49. h4 {[%clk 0:01:04.1]} 49... c5
{[%clk 0:00:21]} 50. h5 {[%clk 0:01:04.2]} 50... c4 {[%clk 0:00:19.7]} 51. h6
{[%clk 0:01:04.2]} 1-0

[Event "*** Titled Tuesday Blitz"]
[Site "Chess.com"]
[Date "2020.04.21"]
[Round "1"]
[White "GmSergioBarrientos"]
[Black "AcsinteMatei"]
[Result "1-0"]
[WhiteElo "2595"]
[BlackElo "2240"]
[TimeControl "180+1"]
[EndTime "10:07:12 PDT"]
[Termination "GmSergioBarrientos won by resignation"]

1. d4 {[%clk 0:02:58.4]} 1... d5 {[%clk 0:02:59.7]} 2. c4 {[%clk 0:02:57.8]}
2... c6 {[%clk 0:02:59.4]} 3. Nf3 {[%clk 0:02:57.4]} 3... Nf6 {[%clk 0:02:59.2]}
4. Nc3 {[%clk 0:02:56.1]} 4... a6 {[%clk 0:02:58.7]} 5. Qc2 {[%clk 0:02:55.2]}
5... Bg4 {[%clk 0:02:53.6]} 6. Ne5 {[%clk 0:02:52.7]} 6... Bh5 {[%clk
0:02:52.9]} 7. cxd5 {[%clk 0:02:32.7]} 7... Nxd5 {[%clk 0:02:49.4]} 8. Qb3
{[%clk 0:02:28.8]} 8... Ra7 {[%clk 0:02:33.8]} 9. e4 {[%clk 0:02:15.3]} 9...
Nxc3 {[%clk 0:02:31]} 10. bxc3 {[%clk 0:02:16.2]} 10... Nd7 {[%clk 0:02:28.4]}
11. Bf4 {[%clk 0:01:58.4]} 11... e6 {[%clk 0:02:11.4]} 12. Bc4 {[%clk
0:01:50.4]} 12... Be7 {[%clk 0:01:52.9]} 13. a4 {[%clk 0:01:43.4]} 13... Bg6
{[%clk 0:01:32.9]} 14. Nxg6 {[%clk 0:01:33.8]} 14... hxg6 {[%clk 0:01:32.5]} 15.
O-O {[%clk 0:01:32.8]} 15... Nf6 {[%clk 0:01:16.1]} 16. Rfe1 {[%clk 0:01:27.9]}
16... Nh5 {[%clk 0:01:16.1]} 17. Be3 {[%clk 0:01:23.5]} 17... Bg5 {[%clk
0:01:16.2]} 18. a5 {[%clk 0:01:16.8]} 18... Bxe3 {[%clk 0:01:04.3]} 19. Rxe3
{[%clk 0:01:17.7]} 19... Qc7 {[%clk 0:01:04.9]} 20. g3 {[%clk 0:01:11.8]} 20...
Nf6 {[%clk 0:01:04]} 21. Be2 {[%clk 0:01:10]} 21... Ra8 {[%clk 0:01:00.5]} 22.
Qb4 {[%clk 0:01:06.5]} 22... Nd7 {[%clk 0:00:55.6]} 23. Rb1 {[%clk 0:01:05.3]}
23... c5 {[%clk 0:00:50.3]} 24. Qxb7 {[%clk 0:01:02.1]} 24... Qxb7 {[%clk
0:00:46.7]} 25. Rxb7 {[%clk 0:01:01.5]} 25... Rc8 {[%clk 0:00:45]} 26. d5 {[%clk
0:00:57.2]} 26... c4 {[%clk 0:00:42.1]} 27. dxe6 {[%clk 0:00:53.1]} 27... fxe6
{[%clk 0:00:42.3]} 28. Bg4 {[%clk 0:00:52.7]} 28... Nc5 {[%clk 0:00:19.2]} 29.
Rxg7 {[%clk 0:00:50]} 29... Rd8 {[%clk 0:00:15.5]} 30. Rc7 {[%clk 0:00:45.2]}
30... Nb3 {[%clk 0:00:11.3]} 31. Bxe6 {[%clk 0:00:42.1]} 31... Nxa5 {[%clk
0:00:10.6]} 32. Bxc4 {[%clk 0:00:37.7]} 32... Nxc4 {[%clk 0:00:09.7]} 33. Rxc4
{[%clk 0:00:38.6]} 33... Ke7 {[%clk 0:00:09.4]} 34. Ra4 {[%clk 0:00:36.2]} 34...
Rd2 {[%clk 0:00:09.8]} 35. Rf3 {[%clk 0:00:32.2]} 35... Ra8 {[%clk 0:00:07.7]}
36. e5 {[%clk 0:00:29]} 36... Ke6 {[%clk 0:00:07.9]} 37. Rf6+ {[%clk 0:00:28.7]}
37... Kxe5 {[%clk 0:00:07.7]} 38. Raxa6 {[%clk 0:00:28.9]} 38... Rb8 {[%clk
0:00:07.6]} 39. Rae6+ {[%clk 0:00:28.1]} 39... Kd5 {[%clk 0:00:07.9]} 40. Rd6+
{[%clk 0:00:28.5]} 40... Kc4 {[%clk 0:00:07.7]} 41. Rxd2 {[%clk 0:00:28.2]}
41... Kxc3 {[%clk 0:00:08.6]} 1-0

[Event "*** Titled Tuesday Blitz"]
[Site "Chess.com"]
[Date "2020.04.21"]
[Round "1"]
[White "IMTominho"]
[Black "ace_mar"]
[Result "1-0"]
[WhiteElo "2763"]
[BlackElo "2396"]
[TimeControl "180+1"]
[EndTime "10:07:14 PDT"]
[Termination "IMTominho won by resignation"]

1. d4 {[%clk 0:03:00.9]} 1... Nf6 {[%clk 0:02:59.6]} 2. c4 {[%clk 0:03:00.7]}
2... e6 {[%clk 0:02:59.7]} 3. Nf3 {[%clk 0:03:00.5]} 3... d5 {[%clk 0:02:59.7]}
4. Nc3 {[%clk 0:03:00.3]} 4... Bb4 {[%clk 0:02:59.3]} 5. cxd5 {[%clk 0:02:57.9]}
5... exd5 {[%clk 0:03:00.2]} 6. Bg5 {[%clk 0:02:57.7]} 6... h6 {[%clk
0:03:00.2]} 7. Bxf6 {[%clk 0:02:57.6]} 7... Qxf6 {[%clk 0:03:00.1]} 8. Qa4+
{[%clk 0:02:58.5]} 8... Nc6 {[%clk 0:02:59.9]} 9. e3 {[%clk 0:02:58.2]} 9... O-O
{[%clk 0:02:59.7]} 10. Rc1 {[%clk 0:02:57.6]} 10... Qg6 {[%clk 0:02:43.4]} 11.
Qd1 {[%clk 0:02:55.3]} 11... Be6 {[%clk 0:02:23.9]} 12. a3 {[%clk 0:02:53.6]}
12... Be7 {[%clk 0:02:17.4]} 13. h3 {[%clk 0:02:49.3]} 13... a6 {[%clk
0:02:13.1]} 14. Bd3 {[%clk 0:02:49]} 14... Qh5 {[%clk 0:01:55.1]} 15. Ne2 {[%clk
0:02:17.7]} 15... Bd6 {[%clk 0:01:49.9]} 16. Bb1 {[%clk 0:02:01.2]} 16... Rae8
{[%clk 0:01:47.8]} 17. Qd3 {[%clk 0:01:57.7]} 17... f5 {[%clk 0:01:47.2]} 18.
O-O {[%clk 0:01:54.1]} 18... Rf7 {[%clk 0:01:13]} 19. Nf4 {[%clk 0:01:52]} 19...
Bxf4 {[%clk 0:01:12.6]} 20. exf4 {[%clk 0:01:52.9]} 20... Bd7 {[%clk 0:01:06.8]}
21. Ba2 {[%clk 0:01:49.1]} 21... Be6 {[%clk 0:01:00.6]} 22. Rfe1 {[%clk
0:01:48.9]} 22... Rd7 {[%clk 0:01:00.6]} 23. Qb3 {[%clk 0:01:34.4]} 23... Nd8
{[%clk 0:00:50.3]} 24. Qb4 {[%clk 0:01:22.4]} 24... c6 {[%clk 0:00:44.3]} 25.
Re3 {[%clk 0:01:20.1]} 25... Nf7 {[%clk 0:00:40.3]} 26. Rce1 {[%clk 0:01:19.2]}
26... Rde7 {[%clk 0:00:40.6]} 27. Bb1 {[%clk 0:01:10.5]} 27... Kh8 {[%clk
0:00:15.5]} 28. Bc2 {[%clk 0:01:04.2]} 28... Kg8 {[%clk 0:00:14.8]} 29. Bd1
{[%clk 0:01:04.2]} 29... Qg6 {[%clk 0:00:13.8]} 30. Bc2 {[%clk 0:01:00.7]} 30...
Qf6 {[%clk 0:00:13.9]} 31. a4 {[%clk 0:00:49.2]} 31... Kh8 {[%clk 0:00:12.6]}
32. Qc5 {[%clk 0:00:47.8]} 32... Kg8 {[%clk 0:00:12.6]} 33. b4 {[%clk
0:00:46.3]} 33... Kh8 {[%clk 0:00:10.3]} 34. Bd3 {[%clk 0:00:46.4]} 34... Kg8
{[%clk 0:00:09.1]} 35. b5 {[%clk 0:00:46.6]} 35... axb5 {[%clk 0:00:10]} 36.
axb5 {[%clk 0:00:47.4]} 36... cxb5 {[%clk 0:00:07.6]} 37. Bxb5 {[%clk
0:00:48.3]} 37... Rd8 {[%clk 0:00:07.5]} 38. Qb6 {[%clk 0:00:38.3]} 38... Rd6
{[%clk 0:00:06.9]} 39. Qc5 {[%clk 0:00:33.9]} 39... Rd8 {[%clk 0:00:06.2]} 40.
Ba4 {[%clk 0:00:30.9]} 40... Nd6 {[%clk 0:00:06.3]} 41. Qb6 {[%clk 0:00:29.9]}
41... Rf8 {[%clk 0:00:05.4]} 42. Qxd6 {[%clk 0:00:29.4]} 1-0

[Event "*** Titled Tuesday Blitz"]
[Site "Chess.com"]
[Date "2020.04.21"]
[Round "1"]
[White "HarryCun"]
[Black "GulamaliRises"]
[Result "0-1"]
[WhiteElo "2158"]
[BlackElo "2546"]
[TimeControl "180+1"]
[EndTime "10:07:15 PDT"]
[Termination "GulamaliRises won on time"]

1. Nf3 {[%clk 0:03:00.9]} 1... d5 {[%clk 0:02:59]} 2. g3 {[%clk 0:03:01]} 2...
g6 {[%clk 0:02:58.5]} 3. Bg2 {[%clk 0:03:00.9]} 3... Bg7 {[%clk 0:02:59.1]} 4.
O-O {[%clk 0:03:00.6]} 4... e5 {[%clk 0:02:59.3]} 5. d3 {[%clk 0:03:00.6]} 5...
Ne7 {[%clk 0:02:58.4]} 6. Nbd2 {[%clk 0:03:00.5]} 6... O-O {[%clk 0:02:46]} 7.
e4 {[%clk 0:02:56.4]} 7... Nbc6 {[%clk 0:02:46.9]} 8. Re1 {[%clk 0:02:54.7]}
8... Re8 {[%clk 0:02:46.1]} 9. b3 {[%clk 0:02:54.3]} 9... d4 {[%clk 0:02:38.9]}
10. Bb2 {[%clk 0:02:38.9]} 10... h6 {[%clk 0:02:38.1]} 11. h3 {[%clk 0:02:38]}
11... Be6 {[%clk 0:02:38.1]} 12. g4 {[%clk 0:02:37.3]} 12... Qd7 {[%clk
0:02:20.1]} 13. Nf1 {[%clk 0:02:31.3]} 13... Nd8 {[%clk 0:02:12.5]} 14. Ng3
{[%clk 0:02:26.1]} 14... c5 {[%clk 0:02:12]} 15. Nh2 {[%clk 0:02:18.2]} 15...
Ndc6 {[%clk 0:02:11.5]} 16. Bc1 {[%clk 0:02:12.9]} 16... b5 {[%clk 0:02:08]} 17.
f4 {[%clk 0:02:12.2]} 17... exf4 {[%clk 0:02:04]} 18. Bxf4 {[%clk 0:02:13.1]}
18... Ne5 {[%clk 0:02:04]} 19. Nf3 {[%clk 0:02:09.8]} 19... N7c6 {[%clk
0:02:04.1]} 20. Qd2 {[%clk 0:01:51.6]} 20... Kh7 {[%clk 0:02:01.3]} 21. Nxe5
{[%clk 0:01:19]} 21... Nxe5 {[%clk 0:02:01]} 22. Nf5 {[%clk 0:01:18.4]} 22...
gxf5 {[%clk 0:01:57.7]} 23. gxf5 {[%clk 0:01:18.4]} 23... Rg8 {[%clk 0:01:51.6]}
24. fxe6 {[%clk 0:01:16.7]} 24... fxe6 {[%clk 0:01:49.7]} 25. Rf1 {[%clk
0:00:59.7]} 25... Qe7 {[%clk 0:01:40.9]} 26. Rf2 {[%clk 0:00:37]} 26... Qh4
{[%clk 0:01:20]} 27. Raf1 {[%clk 0:00:34]} 27... Ng6 {[%clk 0:01:20.2]} 28. Bd6
{[%clk 0:00:19.3]} 28... e5 {[%clk 0:01:18.6]} 29. Bxc5 {[%clk 0:00:18.5]} 29...
Nf4 {[%clk 0:01:16.5]} 30. Rxf4 {[%clk 0:00:14.1]} 30... exf4 {[%clk 0:01:17.4]}
31. Rxf4 {[%clk 0:00:14.7]} 31... Qg5 {[%clk 0:01:17.6]} 32. Qf2 {[%clk
0:00:14.2]} 32... Rac8 {[%clk 0:01:16.7]} 33. b4 {[%clk 0:00:14.3]} 33... Rc7
{[%clk 0:01:13.9]} 34. Kh1 {[%clk 0:00:14.3]} 34... Be5 {[%clk 0:01:13.6]} 35.
Rf5 {[%clk 0:00:14]} 35... Qg7 {[%clk 0:01:11.6]} 36. Bf3 {[%clk 0:00:08.5]}
36... Rf7 {[%clk 0:01:02.8]} 37. Bg4 {[%clk 0:00:08.5]} 37... Rxf5 {[%clk
0:01:03.1]} 38. Bxf5+ {[%clk 0:00:08.5]} 38... Kh8 {[%clk 0:01:04]} 39. Bg4
{[%clk 0:00:06]} 39... Qf6 {[%clk 0:01:03.1]} 40. Qxf6+ {[%clk 0:00:04.9]} 40...
Bxf6 {[%clk 0:01:04]} 41. Bxa7 {[%clk 0:00:02.9]} 41... Ra8 {[%clk 0:01:03.4]}
42. Bc5 {[%clk 0:00:02.3]} 42... Rxa2 {[%clk 0:01:03.1]} 43. Bd7 {[%clk
0:00:02.6]} 43... Rxc2 {[%clk 0:00:59.4]} 44. Bxb5 {[%clk 0:00:02.6]} 44... Rc1+
{[%clk 0:01:00.3]} 45. Kg2 {[%clk 0:00:01.8]} 45... Rc2+ {[%clk 0:01:01.2]} 46.
Kg3 {[%clk 0:00:02]} 46... Rc3 {[%clk 0:01:02.1]} 47. Bc4 {[%clk 0:00:02]} 47...
Be5+ {[%clk 0:01:02.5]} 48. Kf3 {[%clk 0:00:01.7]} 48... Rc1 {[%clk 0:00:58.3]}
49. Kg4 {[%clk 0:00:02.1]} 49... Rf1 {[%clk 0:00:54.2]} 0-1